Cogmind - Beta 11.1 @@@ ROGUE MODE // 2022.09.08 @ 15:43:01 Player: HeartGrenade Result: Destroyed by YI-UF0 with YI-UF0's Doublenader Performance ------------- Evolutions (0) 0 Regions Visited (2) 400 Robots Destroyed (18) 90 Value Destroyed (370) 370 Prototype IDs (0) 0 Alien Tech Used (0) 0 Bonus (0) 0 TOTAL SCORE: 860 Bonus ------- None Cogmind --------- Core Integrity 0/250 Matter 272/300 Energy 86/100 System Corruption 0% Temperature Cool (0) Movement Treading (160) Location -10/Mines Parts ------- > --- POWER (1) -------- (None) > --- PROPULSION (2) --- Light Treads Light Treads > --- UTILITY (2) ------ Large Storage Unit > --- WEAPON (2) ------- Mining Claw > --- INVENTORY (15) --- Ion Engine Flight Unit Flight Unit Flight Unit Flight Unit Flight Unit Flight Unit Flight Unit Improved Heat Sink Light Armor Plating Light Armor Plating Hacking Suite Peak State ------------ > --- POWER ------------ Ion Engine > --- PROPULSION ------- Light Treads Light Treads > --- UTILITY ---------- Large Storage Unit Light Armor Plating > --- WEAPON ----------- Light Assault Rifle Light Assault Rifle > --- INVENTORY -------- Ion Engine Light Treads Light Treads Flight Unit Flight Unit Flight Unit Flight Unit Improved Heat Sink Light Armor Plating Light Armor Plating Hacking Suite Mining Claw [Rating: 8] Favorites ----------- Power Ion Engine Engine Ion Engine Propulsion Light Treads Treads Light Treads Utility Large Storage Unit Storage Large Storage Unit Protection Light Armor Plating Weapon Light Assault Rifle Ballistic Gun Light Assault Rifle Slashing Weapon Mining Claw Build | -11 -10 -10 ------- Run | Scr Mat Min Slots Evolved . | . . . Power . | . . . Propulsion . | . . . Utility . | . . . Weapon . | . . . Parts Attached 21 | 4 13 4 Power 2 | . 2 . Engine 2 | . 2 . Core . | . . . Reactor . | . . . Propulsion 7 | 2 3 2 Treads 7 | 2 3 2 Leg . | . . . Wheel . | . . . Hover . | . . . Flight . | . . . Utility 8 | . 7 1 Device . | . . . Storage 3 | . 3 . Processor . | . . . Hackware . | . . . Protection 5 | . 4 1 Artifact . | . . . Weapon 4 | 2 1 1 Energy Gun . | . . . Energy Cannon . | . . . Ballistic Gun 3 | 2 1 . Ballistic Cannon . | . . . Launcher . | . . . Special Weapon . | . . . Impact Weapon . | . . . Slashing Weapon 1 | . . 1 Piercing Weapon . | . . . Special Melee Weapon . | . . . Unidentified Prototypes . | . . . Parts Lost 9 | . 3 6 Power 2 | . 1 1 Propulsion 3 | . 1 2 Utility 1 | . . 1 Weapon 3 | . 1 2 Highest Loss Streak 6 | . 3 6 To Critical Strikes . | . . . Average Slot Usage (%) 77 | . 72 88 Engine 8 | . 6 12 Treads 27 | . 27 26 Storage 10 | . 8 14 Protection 3 | . 1 6 Ballistic Gun 27 | . 28 26 Naked Turns . | . . . Heaviest Build 30 | 3 28 30 Greatest Support 40 | 3 40 40 Greatest Overweight (x) 1 | . 1 . Average Overweight (x) . | . . . Largest Inventory Capacity 15 | 5 15 15 Average Capacity 12 | 5 10 15 Most Carried 15 | 2 13 15 Average Carried 9 | 1 7 13 Final Capacity 15 | 5 15 15 Final Carried 13 | 2 13 12 Class Distribution -------------------- 100% | Mutant Dominant Class ---------------- Mutant | -10/Materials Mutant | -10/Mines Resources | -11 -10 -10 ----------- Run | Scr Mat Min Matter Collected 565 | 192 319 54 Remotely . | . . . Salvage Created 590 | . 465 125 Parts 44 | . 36 8 Haulers Intercepted 2 | . 2 . Recyclers Shooed 1 | . 1 . Parts Field Recycled . | . . . Retrieved Matter . | . . . Parts Self-Destructed . | . . . Prevented . | . . . Kills | -11 -10 -10 ------- Run | Scr Mat Min Combat Hostiles Destroyed 12 | . 9 3 Guns 12 | . 9 3 Classes Destroyed 6 | . 5 1 Worker 1 | . 1 . Hauler 2 | . 2 . Recycler 1 | . . 1 Operator 2 | . 2 . Swarmer 5 | . 3 2 Grunt 7 | . 6 1 Best Kill Streak 4 | . 4 2 Combat Bots Only 4 | . 4 2 Max Kills in Single Turn 1 | . 1 1 Gunslinging . | . . . Exploded . | . . . Melee . | . . . Uniques/NPCs Destroyed . | . . . Combat | -11 -10 -10 -------- Run | Scr Mat Min Damage Taken 1492 | . 622 870 Core 255 | . 115 140 Absorbed by Shields . | . . . Core Remaining (%) 100 | 100 . . Volleys Fired 72 | . 51 21 Largest 2 | . 2 2 Hottest 40 | . 40 40 Shots Fired 138 | . 102 36 Gun 138 | . 102 36 Cannon . | . . . Launcher . | . . . Special . | . . . Kinetic 138 | . 102 36 Thermal . | . . . Explosive . | . . . Electromagnetic . | . . . Robot Hit Streak 13 | . 13 7 Robot Miss Streak 3 | . 3 2 Penetration Max . | . . . Secondary Targets . | . . . Shots Hit Robots 97 | . 72 25 Core Hits 37 | . 29 8 Critical Kills 1 | . 1 . Critical Parts Destroyed . | . . . Critical Strikes 1 | . 1 . Destroy 1 | . 1 . Melee Attacks 2 | . . 2 Impact . | . . . Slashing 2 | . . 2 Piercing . | . . . Sneak Attacks . | . . . Combat Hostiles . | . . . Follow-up Attacks . | . . . Damage Inflicted 933 | . 705 228 Guns 911 | . 705 206 Cannons . | . . . Explosions . | . . . Melee 22 | . . 22 Ramming . | . . . Kinetic 911 | . 705 206 Thermal . | . . . Explosive . | . . . Electromagnetic . | . . . Impact . | . . . Slashing 22 | . . 22 Piercing . | . . . Highest Corruption . | . . . Average Corruption . | . . . Corruption Purged . | . . . Corruption Blocked . | . . . Overload Shots . | . . . Overflow Damage . | . . . Projectiles . | . . . Explosions . | . . . Melee . | . . . Knockbacks . | . . . Impact . | . . . Kinetic . | . . . Secondary . | . . . Self-Inflicted Damage . | . . . Shots . | . . . Rammed . | . . . Targets Rammed . | . . . Kicked . | . . . Crushed . | . . . Highest Temperature 27 | . 27 18 Average Temperature 6 | . 6 8 Received Heat Transfer 324 | . 288 36 Siege Activations . | . . . Robots Corrupted . | . . . Combat Hostiles . | . . . Parts Fried . | . . . Impact Corruptions . | . . . Robots Melted . | . . . Combat Hostiles . | . . . Parts Melted . | . . . Heat Transferred . | . . . Parts Sabotaged . | . . . Parts Stolen . | . . . Parts Stripped . | . . . Power Chain Reactions . | . . . Missiles Intercepted . | . . . Alert | -11 -10 -10 ------- Run | Scr Mat Min Peak Influence 223 | . 208 223 Initial 78 | . . 78 Average 130 | . 114 174 Maximum Alert Level 1 | . 1 1 Low Security (%) 74 | 100 84 50 Level 1 25 | . 15 49 Level 2 . | . . . Level 3 . | . . . Level 4 . | . . . Level 5 . | . . . High Security . | . . . Max Security . | . . . Squads Dispatched 2 | . 2 . Investigation . | . . . Extermination . | . . . Reinforcement 2 | . 2 . Assault . | . . . Garrison . | . . . Intercept . | . . . Searches Triggered . | . . . Construction Impeded . | . . . Haulers Reinforced . | . . . Active Scanning Responses . | . . . Cargo Convoy Interrupts . | . . . Stealth | -11 -10 -10 --------- Run | Scr Mat Min Distress Signals 3 | . 3 . Communications Jammed . | . . . Distress Signals . | . . . Times Spotted 29 | . 23 6 Peak Tracking Total 5 | . 5 3 Tactical Retreats 7 | . 4 3 Traps | -11 -10 -10 ------- Run | Scr Mat Min Traps Triggered 1 | . 1 . Indirectly . | . . . Trap Hack Attempts . | . . . Triggered . | . . . Disarmed . | . . . Reprogrammed . | . . . Reused . | . . . Traps Extracted . | . . . Installed . | . . . Triggered . | . . . Machines | -11 -10 -10 ---------- Run | Scr Mat Min Machines Disabled . | . . . Max in Single Turn . | . . . Machines Sabotaged . | . . . Garrisons Compromised . | . . . Overloaded Fab Kills . | . . . Hacking | -11 -10 -10 --------- Run | Scr Mat Min Machines Accessed 4 | . 4 . Terminals 4 | . 4 . Fabricators . | . . . Repair Stations . | . . . Recycling Units . | . . . Scanalyzers . | . . . Garrison Access . | . . . Total Hacks 15 | . 15 . Successful 6 | . 6 . Failed 8 | . 8 . Catastrophic 1 | . 1 . Database Lockouts 1 | . 1 . Manual 14 | . 14 . Terminals 15 | . 15 . Fabricators . | . . . Repair Stations . | . . . Recycling Units . | . . . Scanalyzers . | . . . Garrison Access . | . . . Terminal Hacks 4 | . 4 . Robot Analysis 1 | . 1 . Branch Access Points 1 | . 1 . Recall Reinforcements 1 | . 1 . Zone Layout 1 | . 1 . Fabricator Hacks . | . . . Repair Station Hacks . | . . . Recycling Unit Hacks . | . . . Scanalyzer . | . . . Garrison Access Hacks . | . . . Unauthorized Hacks 2 | . 2 . Terminals 2 | . 2 . Track 2 | . 2 . Fabricators . | . . . Repair Stations . | . . . Recycling Units . | . . . Scanalyzers . | . . . Garrison Access . | . . . Data Cores Recovered . | . . . Used . | . . . Hacking Detections 3 | . 3 . Full Trace Events 1 | . 1 . Feedback Events . | . . . Feedback Blocked . | . . . Robot Schematics Acquired . | . . . Robots Built . | . . . Authchips . | . . . Time . | . . . Total Robot Build Rating . | . . . Part Schematics Acquired . | . . . Parts Built . | . . . Authchips . | . . . Time . | . . . Total Part Build Rating . | . . . Parts Repaired . | . . . Time . | . . . Parts Recycled . | . . . Recycled Matter . | . . . Retrieved Matter . | . . . Retrieved Components . | . . . Parts Scanalyzed . | . . . Part Schematics Acquired . | . . . Parts Damaged . | . . . Bothacking | -11 -10 -10 ------------ Run | Scr Mat Min Used RIF Installer . | . . . Robots Hacked . | . . . Non-combat . | . . . Combat . | . . . Robot Hacks Applied . | . . . Relay Couplers Released . | . . . Fabnet Peak Effective % . | . . . Robots Rewired . | . . . Allies Hacked . | . . . Hacks Repelled . | . . . Allies | -11 -10 -10 -------- Run | Scr Mat Min Total Allies . | . . . Largest Group . | . . . Highest-Rated Group . | . . . Highest-Rated Ally . | . . . Total Orders . | . . . Ally Attacks . | . . . Total Damage . | . . . Kills . | . . . Allies Corrupted . | . . . Allies Melted . | . . . Intel | -11 -10 -10 ------- Run | Scr Mat Min Robot Analysis Total 1 | . 1 . Derelict Logs Recovered 1 | . . 1 Drone Launches . | . . . Drone Recoveries . | . . . Exploration | -11 -10 -10 ------------- Run | Scr Mat Min Turns Passed 1104 | 29 723 352 Spaces Moved 809 | 41 589 179 Core 458 | 41 417 . Treads 351 | . 172 179 Legs . | . . . Wheels . | . . . Hover . | . . . Flight . | . . . Fastest Speed 50 | 50 50 160 Average Speed 98 | 50 82 160 Slowest Speed 160 | 50 160 160 Overloaded Moves . | . . . Propulsion Burnouts . | . . . Robots Hopped . | . . . Cave-ins Triggered . | . . . Exploration Rate (%) 40 | 3 78 39 Regions Visited 2 Branch Regions 1 Pre-discovered Areas . | . . . Known Exits Taken 1 | . 1 . Unknown Exits Taken 1 | 1 . . Scrap Searched . | . . . Spaces Dug . | . . . Terrain Destroyed . | . . . Melee . | . . . Projectile . | . . . AOE . | . . . Terrain Rammed . | . . . Walls Destroyed . | . . . Machines Disabled . | . . . Actions | -11 -10 -10 --------- Run | Scr Mat Min Total 998 | 46 739 213 Wait 62 | . 58 4 Move 807 | 40 588 179 Hop . | . . . Pick Up 22 | 2 17 3 Fast Attach 7 | 4 3 . Attach 14 | . 10 4 Detach 8 | . 8 . Swap . | . . . Drop 4 | . 4 . Fire 72 | . 51 21 Melee 2 | . . 2 Ram . | . . . Kick . | . . . Crush . | . . . Escape Stasis . | . . . Rewire . | . . . Trap . | . . . Miscellaneous . | . . . Route ------- -11/Scrapyard -10/Materials (discovered 4 exits: [*Mat x3] / *Min) -10/Mines History --------- Turn | Location | Event 8 | -11/Scrapyard | Discovered new exit (range 16) 30 | -11/Scrapyard | Entered Materials 171 | -10/Materials | Discovered new exit (range 13) 308 | -10/Materials | Build established: Mutant 405 | -10/Materials | Central database locked down 417 | -10/Materials | Discovered new exit (range 15) 478 | -10/Materials | Identified exit to Mines 614 | -10/Materials | Lost 3 parts (1p1n1w) 697 | -10/Materials | Discovered new exit (range 13) 753 | -10/Materials | Entered Mines 844 | -10/Mines | Learned Materials terminal intel 1071 | -10/Mines | Core integrity fell below 50% 1091 | -10/Mines | Core integrity fell below 20% 1105 | -10/Mines | Destroyed by YI-UF0 with YI-UF0's Doublenader Last Messages --------------- 01077_ Ion Engine destroyed. 01079_ Lgt. Assault Rifle destroyed. 01082_ Lgt. Armor Plating destroyed. 01083_ R-06 Scavenger collects Wheel. 01084_ Lgt. Treads destroyed. 01085_ YI-UF0 mumbles something. 01086_ Destroyed Shock Absorption System. 01091_ The unstable cave ceiling collapses. 01092_ YI-UF0 mumbles something. 01092_ The unstable cave ceiling collapses. 01093_ R-06 Scavenger collects Lgt. Ion Engine. 01094_ The unstable cave ceiling collapses. 01095_ Lgt. Assault Rifle destroyed. 01096_ The unstable cave ceiling collapses. 01096_ U-05 Engineer lays Concrete. 01097_ R-06 Scavenger destroyed. 01098_ U-05 Engineer lays Concrete. 01101_ U-05 Engineer builds a Wall. 01103_ The unstable cave ceiling collapses. 01105_ U-05 Engineer lays Concrete. Map ----- +----------------------------------------------------+ | ????## ## """ ????????????????????????????? | | #????# ##??? ????????????????????????????? | | ##??## #### ??????#####????????????????? | | ##?# ?????## ##???????????????? | | #?# ####### *% #???### ################# | | ### #???????? #???## | | ## #???????? #???# ############## | | #????????# #???## ##????????????? | | ##??????## #????### ##?????????????? | | # ######## #??????## ##??????????????? | | ### # # #???????## ##???????????????? | | ??# ## ## # ? #?#?#???? ##????????????????? | | ??# ####[## #?? #? # #### #?????????????????? | | ??# #??# ## ??# #? # # ####??????????????? | | ### #?## ## #### #? %[ #??????????????? | | ### *## ### ! ### #???????????? | | % ## #### =% ???##?????????????? | | # ???## ### ???????????????????? | | ##???# #?? t ##??????????????????? | | ##### #??# # #??????????????????? | | #??# #??????????????????? | | # ### ####### # #??????????????????? | | ## ##?# ### #???????????????????? | | ?## ##??# #???????????????????? | | ??# ##???# g ##??????????????????? | | ??# ####????# @ #??????????????????? | | ### ####?????# # ##??????????????????? | | # #?????# #???????????????????? | | # """#????# #???????????????????? | | # """#????# #??????????????????? | | # """#????# ##??????????????????? | | # """#????# #???????????????????? | | # #????### # ## #???????????????????? | | #########??????# ## ??????????????????? | | ???????????????# ##??u # ?????????????????? | | ???????????????# #??? ##?#????????????????? | | ???????????????# $ ???? ##???????????????????? | | ???????????????# ### ????###????????????????????? | | ??????????????? ??##???????????????????????????? | | ???????????????###???????????????????????????????? | | ?????????????????????????????????????????????????? | | ?????????????????????????????????????????????????? | | ?????????????????????????????????????????????????? | | ?????????????????????????????????????????????????? | | ?????????????????????????????????????????????????? | | ?????????????????????????????????????????????????? | | ?????????????????????????????????????????????????? | | ?????????????????????????????????????????????????? | | ?????????????????????????????????????????????????? | | ?????????????????????????????????????????????????? | +----------------------------------------------------+ Best States ------------- Heat Dissipation 25 Energy Generation 10 Energy Capacity 250 Matter Stores 300 Matter Capacity 300 Sight Range 16 Terrain Scan Density 10 Armor Coverage 150 Core Shielding 20 Evasion (%) 50 Recoil Reduction 2 Item Schematics ----------------- None Robot Schematics ------------------ None Fabricated ------------ Nothing Alien Tech Used ----------------- None Achievements -------------- None Challenges ------------ None Game ------ Seed RestorationEnhancedClaws Manual? 0 Play Time 00:11:57 Cumulative 172.4 hours Start 2022.09.08 @ 15:33:18 End 2022.09.08 @ 15:43:01 Sessions 1 Manual Loads 0 Difficulty Rogue Special Mode None Game No. 70 Rogue 70 Adventurer 0 Explorer 0 Win Type - Total 7 Types 3/1/1/1/1/0/0/0/0 Lore% 76 Gallery% 72 Achievement% 62 Wizard Run 0 Options --------- ASCII 0 Keyboard 1 Movement Numpad Keybinds 0 Fullscreen 2 Font 18/X11 Map View 76x50 Tactical HUD 1 Map Filters NONE Filters NONE Steam 1 RUN: 59fd2cff-00e0-4826-95cb-fc031195b2fc